[Event "Titled Tuesday Blitz November 01 Early 2022"]
[White "Al-Tarboush, Ward"]
[Black "Karas, Marek"]
[WhiteFideId "7601450"]
[BlackFideId "14928558"]
[WhiteElo "2269"]
[BlackElo "2220"]
[Result "1-0"]
[Round "06"]
[TimeControl "180+1"]
[Date "2022.11.02"]
[WhiteClock "0:00:52"]
[BlackClock "0:00:01"]

1. e4 {[%clk 0:02:59]}  e6 {[%clk 0:02:59]} 2. d4 {[%clk 0:02:58]}  d5 {[%clk 0:02:59]} 3. exd5 {[%clk 0:02:59]}  exd5 {[%clk 0:02:59]} 4. Bd3 {[%clk 0:02:56]}  c5 {[%clk 0:02:59]} 5. Nf3 {[%clk 0:02:55]}  c4 {[%clk 0:02:55]} 6. Be2 {[%clk 0:02:55]}  Nf6 {[%clk 0:02:55]} 7. O-O {[%clk 0:02:55]}  Bd6 {[%clk 0:02:55]} 8. b3 {[%clk 0:02:54]}  cxb3 {[%clk 0:02:54]} 9. axb3 {[%clk 0:02:55]}  O-O {[%clk 0:02:55]} 10. c4 {[%clk 0:02:55]}  Nc6 {[%clk 0:02:55]} 11. Nc3 {[%clk 0:02:56]}  b6 {[%clk 0:02:42]} 12. Bg5 {[%clk 0:02:53]}  dxc4 {[%clk 0:02:39]} 13. bxc4 {[%clk 0:02:54]}  Bb7 {[%clk 0:02:38]} 14. Nd5 {[%clk 0:02:54]}  Be7 {[%clk 0:02:37]} 15. Nxe7+ {[%clk 0:02:55]}  Qxe7 {[%clk 0:02:37]} 16. d5 {[%clk 0:02:55]}  Nb8 {[%clk 0:02:34]} 17. Re1 {[%clk 0:02:53]}  Qd6 {[%clk 0:02:22]} 18. Nd4 {[%clk 0:02:51]}  Nbd7 {[%clk 0:02:19]} 19. Nf5 {[%clk 0:02:51]}  Qc7 {[%clk 0:02:16]} 20. Bd3 {[%clk 0:02:49]}  Rfe8 {[%clk 0:02:12]} 21. Ne7+ {[%clk 0:02:47]}  Kf8 {[%clk 0:02:04]} 22. Nf5 {[%clk 0:02:38]}  Rxe1+ {[%clk 0:02:00]} 23. Qxe1 {[%clk 0:02:38]}  Re8 {[%clk 0:01:54]} 24. Qb4+ {[%clk 0:02:38]}  Qc5 {[%clk 0:01:48]} 25. Bd2 {[%clk 0:02:36]}  a5 {[%clk 0:01:37]} 26. Qb2 {[%clk 0:02:32]}  Ne5 {[%clk 0:01:30]} 27. Bf1 {[%clk 0:02:30]}  Nxc4 {[%clk 0:01:21]} 28. Bxc4 {[%clk 0:02:26]}  Qxc4 {[%clk 0:01:22]} 29. Bh6 {[%clk 0:02:20]}  Qxd5 {[%clk 0:01:06]} 30. Qa3+ {[%clk 0:01:53]}  Kg8 {[%clk 0:01:00]} 31. Qg3 {[%clk 0:01:53]}  g6 {[%clk 0:00:45]} 32. Ne3 {[%clk 0:01:53]}  Qe5 {[%clk 0:00:37]} 33. Qxe5 {[%clk 0:01:53]}  Rxe5 {[%clk 0:00:37]} 34. Rd1 {[%clk 0:01:53]}  Re8 {[%clk 0:00:26]} 35. Rd6 {[%clk 0:01:52]}  Nd5 {[%clk 0:00:21]} 36. h4 {[%clk 0:01:46]}  Nxe3 {[%clk 0:00:18]} 37. fxe3 {[%clk 0:01:47]}  Ra8 {[%clk 0:00:12]} 38. Rxb6 {[%clk 0:01:47]}  Bd5 {[%clk 0:00:11]} 39. Bg5 {[%clk 0:01:43]}  a4 {[%clk 0:00:10]} 40. Bf6 {[%clk 0:01:43]}  a3 {[%clk 0:00:08]} 41. Ba1 {[%clk 0:01:43]}  a2 {[%clk 0:00:08]} 42. Kf2 {[%clk 0:01:44]}  Be6 {[%clk 0:00:08]} 43. Ke2 {[%clk 0:01:42]}  Rc8 {[%clk 0:00:08]} 44. Kd2 {[%clk 0:01:41]}  h6 {[%clk 0:00:08]} 45. Bd4 {[%clk 0:01:40]}  g5 {[%clk 0:00:08]} 46. hxg5 {[%clk 0:01:37]}  hxg5 {[%clk 0:00:09]} 47. Ra6 {[%clk 0:01:38]}  Kh7 {[%clk 0:00:08]} 48. Bc3 {[%clk 0:01:36]}  Rb8 {[%clk 0:00:08]} 49. Kc2 {[%clk 0:01:35]}  Rb1 {[%clk 0:00:07]} 50. Bd4 {[%clk 0:01:34]}  Rg1 {[%clk 0:00:07]} 51. Kd3 {[%clk 0:01:28]}  Rxg2 {[%clk 0:00:07]} 52. Ke4 {[%clk 0:01:29]}  Kg6 {[%clk 0:00:07]} 53. Ra8 {[%clk 0:01:27]}  Rg4+ {[%clk 0:00:05]} 54. Kf3 {[%clk 0:01:26]}  Rh4 {[%clk 0:00:04]} 55. Rg8+ {[%clk 0:01:25]}  Kf5 {[%clk 0:00:04]} 56. Rd8 {[%clk 0:01:13]}  Rh3+ {[%clk 0:00:05]} 57. Kg2 {[%clk 0:01:12]}  g4 {[%clk 0:00:05]} 58. Rg8 {[%clk 0:01:06]}  Ke4 {[%clk 0:00:05]} 59. Ra8 {[%clk 0:01:05]}  Kd3 {[%clk 0:00:03]} 60. Ra3+ {[%clk 0:01:05]}  Ke4 {[%clk 0:00:03]} 61. Ra5 {[%clk 0:01:04]}  Rf3 {[%clk 0:00:04]} 62. Ra3 {[%clk 0:01:02]}  Rf5 {[%clk 0:00:04]} 63. Kg3 {[%clk 0:01:02]}  Rb5 {[%clk 0:00:03]} 64. Ba7 {[%clk 0:00:58]}  Rb1 {[%clk 0:00:03]} 65. Bd4 {[%clk 0:00:58]}  Rb5 {[%clk 0:00:03]} 66. Ba7 {[%clk 0:00:57]}  Kf5 {[%clk 0:00:03]} 67. Ra4 {[%clk 0:00:56]}  Kg6 {[%clk 0:00:02]} 68. Bd4 {[%clk 0:00:55]}  Rb1 {[%clk 0:00:02]} 69. Ra5 {[%clk 0:00:56]}  Rg1+ {[%clk 0:00:02]} 70. Kf2 {[%clk 0:00:55]}  Rb1 {[%clk 0:00:03]} 71. Kg3 {[%clk 0:00:55]}  Bd7 {[%clk 0:00:02]} 72. Kf4 {[%clk 0:00:56]}  Be6 {[%clk 0:00:02]} 73. Rg5+ {[%clk 0:00:56]}  Kh7 {[%clk 0:00:01]} 74. Ra5 {[%clk 0:00:57]}  Kg6 {[%clk 0:00:02]} 75. Rg5+ {[%clk 0:00:57]}  Kh6 {[%clk 0:00:02]} 76. Ra5 {[%clk 0:00:57]}  Rf1+ {[%clk 0:00:03]} 77. Kg3 {[%clk 0:00:57]}  Rf3+ {[%clk 0:00:03]} 78. Kg2 {[%clk 0:00:57]}  Kg6 {[%clk 0:00:03]} 79. Ra6 {[%clk 0:00:57]}  Kf5 {[%clk 0:00:03]} 80. Ra5+ {[%clk 0:00:57]}  Ke4 {[%clk 0:00:04]} 81. Ra3 {[%clk 0:00:57]}  Rf5 {[%clk 0:00:03]} 82. Ra4 {[%clk 0:00:56]}  Kd3 {[%clk 0:00:03]} 83. Ra3+ {[%clk 0:00:53]}  Kc4 {[%clk 0:00:03]} 84. Ra4+ {[%clk 0:00:53]}  Kb3 {[%clk 0:00:02]} 85. Ra7 {[%clk 0:00:53]}  Rb5 {[%clk 0:00:02]} 86. Kg3 {[%clk 0:00:53]}  Kc2 {[%clk 0:00:03]} 87. Rc7+ {[%clk 0:00:51]}  Kd3 {[%clk 0:00:02]} 88. Ra7 {[%clk 0:00:52]}  Rb3 {[%clk 0:00:02]} 89. Rxa2 {[%clk 0:00:51]}  Ke4 {[%clk 0:00:03]} 90. Rf2 {[%clk 0:00:50]}  Rb5 {[%clk 0:00:02]} 91. Rf4+ {[%clk 0:00:51]}  Kd3 {[%clk 0:00:03]} 92. Rf6 {[%clk 0:00:52]}  Rb3 {[%clk 0:00:02]} 93. Rf1 {[%clk 0:00:52]}  Ke4 {[%clk 0:00:02]} 94. Rf4+ {[%clk 0:00:52]}  Kd5 {[%clk 0:00:03]} 95. Rf1 {[%clk 0:00:53]}  Rd3 {[%clk 0:00:02]} 96. Rc1 {[%clk 0:00:53]}  Rb3 {[%clk 0:00:02]} 97. Rc2 {[%clk 0:00:52]}  Ke4 {[%clk 0:00:02]} 98. Rc5 {[%clk 0:00:51]}  Rb1 {[%clk 0:00:02]} 99. Kf2 {[%clk 0:00:51]}  Rd1 {[%clk 0:00:01]} 100. Ke2 {[%clk 0:00:51]}  Rb1 {[%clk 0:00:01]} 101. Re5# {[%clk 0:00:52]} 1-0


[Site "https://www.chess.com"]

[Event "Titled Tuesday Blitz November 01 Early 2022"]
[White "Ardila, Oscar Humberto"]
[Black "Bagwe Gaurang"]
[WhiteFideId "4404742"]
[BlackFideId "45039895"]
[WhiteElo "1898"]
[BlackElo "1931"]
[Result "0-1"]
[Round "06"]
[TimeControl "180+1"]
[Date "2022.11.02"]
[WhiteClock "0:01:17"]
[BlackClock "0:01:53"]

1. d4 {[%clk 0:02:58]}  f5 {[%clk 0:02:57]} 2. c4 {[%clk 0:02:58]}  Nf6 {[%clk 0:02:56]} 3. Nc3 {[%clk 0:02:59]}  g6 {[%clk 0:02:56]} 4. Nf3 {[%clk 0:02:59]}  Bg7 {[%clk 0:02:55]} 5. Bg5 {[%clk 0:02:59]}  O-O {[%clk 0:02:53]} 6. e3 {[%clk 0:02:59]}  d6 {[%clk 0:02:53]} 7. d5 {[%clk 0:02:58]}  e5 {[%clk 0:02:52]} 8. dxe6 {[%clk 0:02:57]}  Bxe6 {[%clk 0:02:52]} 9. Nd4 {[%clk 0:02:58]}  Bf7 {[%clk 0:02:52]} 10. Be2 {[%clk 0:02:57]}  Nc6 {[%clk 0:02:51]} 11. O-O {[%clk 0:02:55]}  h6 {[%clk 0:02:49]} 12. Bh4 {[%clk 0:02:54]}  g5 {[%clk 0:02:49]} 13. Bg3 {[%clk 0:02:54]}  Nxd4 {[%clk 0:02:49]} 14. Qxd4 {[%clk 0:02:49]}  Nh5 {[%clk 0:02:17]} 15. Qd3 {[%clk 0:02:48]}  f4 {[%clk 0:02:10]} 16. exf4 {[%clk 0:02:27]}  gxf4 {[%clk 0:02:09]} 17. Bxh5 {[%clk 0:02:23]}  Bxh5 {[%clk 0:02:09]} 18. Qd5+ {[%clk 0:01:35]}  Bf7 {[%clk 0:02:08]} 19. Qxb7 {[%clk 0:01:35]}  fxg3 {[%clk 0:02:06]} 20. hxg3 {[%clk 0:01:35]}  Rb8 {[%clk 0:02:00]} 21. Qxa7 {[%clk 0:01:35]}  Bxc4 {[%clk 0:01:59]} 22. Rfe1 {[%clk 0:01:27]}  Rxb2 {[%clk 0:01:58]} 23. Qe3 {[%clk 0:01:27]}  Rfxf2 {[%clk 0:01:53]} 24. Nd1 {[%clk 0:01:16]}  Rxg2+ {[%clk 0:01:52]} 25. Kh1 {[%clk 0:01:17]}  Rh2+ {[%clk 0:01:52]} 26. Kg1 {[%clk 0:01:17]}  Rbg2# {[%clk 0:01:53]} 0-1


[Site "https://www.chess.com"]

[Event "Titled Tuesday Blitz November 01 Early 2022"]
[White "Aung Thant Zin"]
[Black "Besedes, Danilo"]
[WhiteFideId "13000063"]
[BlackFideId "946796"]
[WhiteElo "2278"]
[BlackElo "2352"]
[Result "0-1"]
[Round "06"]
[TimeControl "180+1"]
[Date "2022.11.02"]
[WhiteClock "0:00:18"]
[BlackClock "0:00:36"]

1. e4 {[%clk 0:02:47]}  d6 {[%clk 0:02:56]} 2. d4 {[%clk 0:02:45]}  e5 {[%clk 0:02:56]} 3. Nf3 {[%clk 0:02:43]}  Nc6 {[%clk 0:02:56]} 4. Bb5 {[%clk 0:02:40]}  exd4 {[%clk 0:02:55]} 5. Nxd4 {[%clk 0:02:38]}  Ne7 {[%clk 0:02:53]} 6. O-O {[%clk 0:02:38]}  Bd7 {[%clk 0:02:53]} 7. Nc3 {[%clk 0:02:35]}  a6 {[%clk 0:02:47]} 8. Bc4 {[%clk 0:02:31]}  Nxd4 {[%clk 0:02:45]} 9. Qxd4 {[%clk 0:02:30]}  Nc6 {[%clk 0:02:43]} 10. Qd1 {[%clk 0:02:21]}  Be7 {[%clk 0:02:36]} 11. Nd5 {[%clk 0:02:16]}  O-O {[%clk 0:02:35]} 12. Nxe7+ {[%clk 0:02:16]}  Qxe7 {[%clk 0:02:30]} 13. Re1 {[%clk 0:02:14]}  Kh8 {[%clk 0:02:27]} 14. Bd2 {[%clk 0:01:44]}  Rae8 {[%clk 0:02:18]} 15. Bc3 {[%clk 0:01:43]}  Qh4 {[%clk 0:02:13]} 16. f3 {[%clk 0:01:29]}  f5 {[%clk 0:01:53]} 17. exf5 {[%clk 0:01:24]}  Qxc4 {[%clk 0:01:50]} 18. f6 {[%clk 0:01:05]}  Rxe1+ {[%clk 0:01:45]} 19. Qxe1 {[%clk 0:01:05]}  gxf6 {[%clk 0:01:45]} 20. Rd1 {[%clk 0:01:00]}  Ne5 {[%clk 0:01:42]} 21. Rd4 {[%clk 0:00:59]}  Qc5 {[%clk 0:01:33]} 22. Kh1 {[%clk 0:00:58]}  Rg8 {[%clk 0:01:28]} 23. Qh4 {[%clk 0:00:50]}  Rg6 {[%clk 0:01:27]} 24. f4 {[%clk 0:00:44]}  Bc6 {[%clk 0:01:14]} 25. Rd2 {[%clk 0:00:26]}  Nd7 {[%clk 0:00:52]} 26. Re2 {[%clk 0:00:18]}  Qc4 {[%clk 0:00:36]} 0-1


[Site "https://www.chess.com"]

[Event "Titled Tuesday Blitz November 01 Early 2022"]
[White "Azarov, Sergei"]
[Black "Lopez, Henry"]
[WhiteFideId "13501470"]
[BlackFideId "5203830"]
[WhiteElo "2770"]
[BlackElo "2571"]
[Result "1-0"]
[Round "06"]
[TimeControl "180+1"]
[Date "2022.11.02"]
[WhiteClock "0:00:02"]
[BlackClock "0:00:01"]

1. e4 {[%clk 0:03:00]}  c5 {[%clk 0:02:59]} 2. Nf3 {[%clk 0:03:01]}  d6 {[%clk 0:02:59]} 3. d4 {[%clk 0:03:01]}  cxd4 {[%clk 0:02:58]} 4. Nxd4 {[%clk 0:03:02]}  Nf6 {[%clk 0:02:58]} 5. Nc3 {[%clk 0:03:02]}  a6 {[%clk 0:02:58]} 6. Bg5 {[%clk 0:03:02]}  e6 {[%clk 0:02:58]} 7. f4 {[%clk 0:03:02]}  Be7 {[%clk 0:02:58]} 8. Qf3 {[%clk 0:03:02]}  Qc7 {[%clk 0:02:57]} 9. O-O-O {[%clk 0:03:02]}  Nbd7 {[%clk 0:02:57]} 10. f5 {[%clk 0:03:01]}  Ne5 {[%clk 0:02:54]} 11. Qh3 {[%clk 0:03:01]}  Qd7 {[%clk 0:02:33]} 12. Be2 {[%clk 0:02:51]}  O-O {[%clk 0:02:32]} 13. Kb1 {[%clk 0:02:49]}  b5 {[%clk 0:02:19]} 14. a3 {[%clk 0:02:49]}  Rb8 {[%clk 0:02:18]} 15. g4 {[%clk 0:02:34]}  b4 {[%clk 0:02:16]} 16. axb4 {[%clk 0:02:34]}  Rxb4 {[%clk 0:02:15]} 17. Bc1 {[%clk 0:02:33]}  Qb7 {[%clk 0:02:12]} 18. Qg2 {[%clk 0:01:33]}  Nc4 {[%clk 0:01:48]} 19. Nb3 {[%clk 0:01:22]}  Ne5 {[%clk 0:01:34]} 20. Rd4 {[%clk 0:01:12]}  Rxd4 {[%clk 0:01:25]} 21. Nxd4 {[%clk 0:01:07]}  Ne8 {[%clk 0:01:16]} 22. g5 {[%clk 0:01:06]}  exf5 {[%clk 0:01:15]} 23. Nd5 {[%clk 0:00:58]}  fxe4 {[%clk 0:01:10]} 24. Qxe4 {[%clk 0:00:54]}  Bd8 {[%clk 0:01:03]} 25. Rd1 {[%clk 0:00:45]}  Nc7 {[%clk 0:01:02]} 26. Nc3 {[%clk 0:00:32]}  Re8 {[%clk 0:00:51]} 27. Qxb7 {[%clk 0:00:29]}  Bxb7 {[%clk 0:00:51]} 28. Nf5 {[%clk 0:00:30]}  Rf8 {[%clk 0:00:40]} 29. Nxd6 {[%clk 0:00:30]}  Bf3 {[%clk 0:00:38]} 30. Bf4 {[%clk 0:00:24]}  Bxe2 {[%clk 0:00:32]} 31. Nxe2 {[%clk 0:00:25]}  Ng6 {[%clk 0:00:32]} 32. Bc1 {[%clk 0:00:25]}  Ne6 {[%clk 0:00:30]} 33. Ne4 {[%clk 0:00:17]}  Bc7 {[%clk 0:00:26]} 34. N2g3 {[%clk 0:00:17]}  Rd8 {[%clk 0:00:25]} 35. Rxd8+ {[%clk 0:00:16]}  Nxd8 {[%clk 0:00:25]} 36. c4 {[%clk 0:00:15]}  a5 {[%clk 0:00:22]} 37. Kc2 {[%clk 0:00:15]}  Ne6 {[%clk 0:00:22]} 38. Kb3 {[%clk 0:00:15]}  Ne5 {[%clk 0:00:23]} 39. Nf5 {[%clk 0:00:09]}  Nd3 {[%clk 0:00:22]} 40. Bd2 {[%clk 0:00:08]}  Ndc5+ {[%clk 0:00:20]} 41. Nxc5 {[%clk 0:00:07]}  Nxc5+ {[%clk 0:00:20]} 42. Kc2 {[%clk 0:00:07]}  g6 {[%clk 0:00:18]} 43. Ne7+ {[%clk 0:00:08]}  Kf8 {[%clk 0:00:17]} 44. Nd5 {[%clk 0:00:08]}  Bd8 {[%clk 0:00:17]} 45. b4 {[%clk 0:00:08]}  Ne4 {[%clk 0:00:16]} 46. b5 {[%clk 0:00:08]}  Ke8 {[%clk 0:00:16]} 47. h4 {[%clk 0:00:06]}  Kd7 {[%clk 0:00:15]} 48. Bf4 {[%clk 0:00:05]}  Nc5 {[%clk 0:00:11]} 49. Be3 {[%clk 0:00:05]}  Ne4 {[%clk 0:00:11]} 50. c5 {[%clk 0:00:04]}  Ke6 {[%clk 0:00:10]} 51. Nc3 {[%clk 0:00:03]}  Ng3 {[%clk 0:00:08]} 52. b6 {[%clk 0:00:02]}  Kd7 {[%clk 0:00:05]} 53. b7 {[%clk 0:00:01]}  Bc7 {[%clk 0:00:05]} 54. Nd5 {[%clk 0:00:01]}  Bb8 {[%clk 0:00:05]} 55. Nf6+ {[%clk 0:00:01]}  Kc6 {[%clk 0:00:05]} 56. Nxh7 {[%clk 0:00:01]}  Nf5 {[%clk 0:00:05]} 57. Bf2 {[%clk 0:00:01]}  Kxb7 {[%clk 0:00:04]} 58. Kd3 {[%clk 0:00:01]}  Kc6 {[%clk 0:00:04]} 59. Kc4 {[%clk 0:00:02]}  Ba7 {[%clk 0:00:04]} 60. Nf6 {[%clk 0:00:02]}  Bxc5 {[%clk 0:00:02]} 61. Bxc5 {[%clk 0:00:02]}  Nxh4 {[%clk 0:00:03]} 62. Nd5 {[%clk 0:00:02]}  Nf3 {[%clk 0:00:02]} 63. Be3 {[%clk 0:00:02]}  Ne5+ {[%clk 0:00:02]} 64. Kd4 {[%clk 0:00:01]}  Nf3+ {[%clk 0:00:02]} 65. Ke4 {[%clk 0:00:02]}  Nh4 {[%clk 0:00:01]} 66. Nc3 {[%clk 0:00:02]} 1-0


[Site "https://www.chess.com"]

[Event "Titled Tuesday Blitz November 01 Early 2022"]
[White "Barbashin, Igor"]
[Black "Troltenier, Dirk"]
[WhiteFideId "4155718"]
[BlackFideId "4606400"]
[WhiteElo "2138"]
[BlackElo "2321"]
[Result "0-1"]
[Round "06"]
[TimeControl "180+1"]
[Date "2022.11.02"]
[WhiteClock "0:00:01"]
[BlackClock "0:00:11"]

1. d4 {[%clk 0:03:00]}  d5 {[%clk 0:02:59]} 2. c4 {[%clk 0:03:00]}  c6 {[%clk 0:02:59]} 3. Nc3 {[%clk 0:02:59]}  Nf6 {[%clk 0:02:59]} 4. Nf3 {[%clk 0:02:58]}  e6 {[%clk 0:02:59]} 5. g3 {[%clk 0:02:58]}  dxc4 {[%clk 0:02:55]} 6. a4 {[%clk 0:02:57]}  Nbd7 {[%clk 0:02:51]} 7. Bg2 {[%clk 0:02:56]}  Bb4 {[%clk 0:02:42]} 8. O-O {[%clk 0:02:54]}  O-O {[%clk 0:02:33]} 9. Nd2 {[%clk 0:02:53]}  Nb6 {[%clk 0:02:21]} 10. a5 {[%clk 0:02:52]}  Nbd5 {[%clk 0:02:19]} 11. Qc2 {[%clk 0:02:15]}  Bxa5 {[%clk 0:01:55]} 12. Nxc4 {[%clk 0:02:13]}  Bc7 {[%clk 0:01:53]} 13. e4 {[%clk 0:01:46]}  Nxc3 {[%clk 0:01:32]} 14. bxc3 {[%clk 0:01:44]}  b5 {[%clk 0:01:31]} 15. Ne5 {[%clk 0:01:22]}  Bb7 {[%clk 0:01:31]} 16. Ba3 {[%clk 0:01:18]}  Re8 {[%clk 0:01:31]} 17. f4 {[%clk 0:01:10]}  Bd6 {[%clk 0:01:17]} 18. Nxc6 {[%clk 0:00:43]}  Bxc6 {[%clk 0:01:12]} 19. Bxd6 {[%clk 0:00:42]}  Qxd6 {[%clk 0:00:55]} 20. e5 {[%clk 0:00:42]}  Qd7 {[%clk 0:00:55]} 21. exf6 {[%clk 0:00:39]}  gxf6 {[%clk 0:00:55]} 22. f5 {[%clk 0:00:30]}  e5 {[%clk 0:00:43]} 23. d5 {[%clk 0:00:26]}  Bb7 {[%clk 0:00:40]} 24. Be4 {[%clk 0:00:22]}  Qd6 {[%clk 0:00:35]} 25. Rfd1 {[%clk 0:00:18]}  Rec8 {[%clk 0:00:34]} 26. Qe2 {[%clk 0:00:15]}  Qb6+ {[%clk 0:00:27]} 27. Kg2 {[%clk 0:00:14]}  Rxc3 {[%clk 0:00:27]} 28. d6 {[%clk 0:00:07]}  Bxe4+ {[%clk 0:00:22]} 29. Qxe4 {[%clk 0:00:08]}  Rd8 {[%clk 0:00:21]} 30. d7 {[%clk 0:00:07]}  Qc5 {[%clk 0:00:14]} 31. Ra6 {[%clk 0:00:04]}  Rc2+ {[%clk 0:00:14]} 32. Kh3 {[%clk 0:00:04]}  Qf2 {[%clk 0:00:14]} 33. Qg4+ {[%clk 0:00:02]}  Kf8 {[%clk 0:00:14]} 34. Qh4 {[%clk 0:00:02]}  Qxf5+ {[%clk 0:00:12]} 35. Qg4 {[%clk 0:00:01]}  Rxh2+ {[%clk 0:00:11]} 0-1


[Site "https://www.chess.com"]

[Event "Titled Tuesday Blitz November 01 Early 2022"]
[White "Biastoch, Bennet"]
[Black "Yeletsky, Ivan"]
[WhiteFideId "12939889"]
[BlackFideId "24180327"]
[WhiteElo "2221"]
[BlackElo "2391"]
[Result "0-1"]
[Round "06"]
[TimeControl "180+1"]
[Date "2022.11.02"]
[WhiteClock "0:01:22"]
[BlackClock "0:01:25"]

1. e4 {[%clk 0:03:00]}  Nf6 {[%clk 0:02:58]} 2. e5 {[%clk 0:03:00]}  Nd5 {[%clk 0:02:58]} 3. c4 {[%clk 0:03:00]}  Nb6 {[%clk 0:02:58]} 4. d4 {[%clk 0:03:01]}  d6 {[%clk 0:02:58]} 5. exd6 {[%clk 0:03:02]}  exd6 {[%clk 0:02:59]} 6. Nc3 {[%clk 0:03:01]}  Be7 {[%clk 0:03:00]} 7. Bd3 {[%clk 0:02:59]}  O-O {[%clk 0:03:01]} 8. Nge2 {[%clk 0:02:58]}  Nc6 {[%clk 0:03:00]} 9. O-O {[%clk 0:02:58]}  Bf6 {[%clk 0:02:56]} 10. Be3 {[%clk 0:02:56]}  Nb4 {[%clk 0:02:55]} 11. Rc1 {[%clk 0:02:48]}  d5 {[%clk 0:02:49]} 12. c5 {[%clk 0:02:46]}  Nxd3 {[%clk 0:02:49]} 13. Qxd3 {[%clk 0:02:45]}  Nc4 {[%clk 0:02:49]} 14. b3 {[%clk 0:02:41]}  Nxe3 {[%clk 0:02:47]} 15. Qxe3 {[%clk 0:02:42]}  c6 {[%clk 0:02:42]} 16. h3 {[%clk 0:02:40]}  Re8 {[%clk 0:02:36]} 17. Qd3 {[%clk 0:02:35]}  g6 {[%clk 0:02:31]} 18. Ng3 {[%clk 0:02:35]}  h5 {[%clk 0:02:19]} 19. b4 {[%clk 0:02:13]}  Kg7 {[%clk 0:02:16]} 20. a4 {[%clk 0:02:12]}  h4 {[%clk 0:02:16]} 21. Nge2 {[%clk 0:02:12]}  Bf5 {[%clk 0:02:16]} 22. Qf3 {[%clk 0:02:12]}  a5 {[%clk 0:02:10]} 23. b5 {[%clk 0:02:10]}  Qc7 {[%clk 0:02:05]} 24. Rfd1 {[%clk 0:01:58]}  Re7 {[%clk 0:02:04]} 25. Nf4 {[%clk 0:01:52]}  Bg5 {[%clk 0:01:55]} 26. g3 {[%clk 0:01:51]}  hxg3 {[%clk 0:01:54]} 27. fxg3 {[%clk 0:01:51]}  Bxf4 {[%clk 0:01:54]} 28. gxf4 {[%clk 0:01:50]}  Rae8 {[%clk 0:01:53]} 29. Kf2 {[%clk 0:01:47]}  Re4 {[%clk 0:01:23]} 30. Nxe4 {[%clk 0:01:36]}  Rxe4 {[%clk 0:01:24]} 31. Rc3 {[%clk 0:01:25]}  Rxf4 {[%clk 0:01:23]} 32. Re1 {[%clk 0:01:22]}  Rxf3+ {[%clk 0:01:24]} 33. Rxf3 {[%clk 0:01:23]}  Qh2+ {[%clk 0:01:24]} 34. Ke3 {[%clk 0:01:23]}  Be4 {[%clk 0:01:25]} 35. Rf2 {[%clk 0:01:22]}  Qg3+ {[%clk 0:01:25]} 0-1


[Site "https://www.chess.com"]

[Event "Titled Tuesday Blitz November 01 Early 2022"]
[White "Bogaudinov, Rushan"]
[Black "Melikyan, Gnel"]
[WhiteFideId "4129288"]
[BlackFideId "54109990"]
[WhiteElo "1945"]
[BlackElo "2138"]
[Result "0-1"]
[Round "06"]
[TimeControl "180+1"]
[Date "2022.11.02"]
[WhiteClock "0:00:08"]
[BlackClock "0:00:38"]

1. e4 {[%clk 0:02:59]}  c5 {[%clk 0:02:59]} 2. Nf3 {[%clk 0:02:59]}  Nc6 {[%clk 0:02:59]} 3. Bb5 {[%clk 0:02:59]}  g6 {[%clk 0:02:58]} 4. Bxc6 {[%clk 0:02:57]}  dxc6 {[%clk 0:02:58]} 5. O-O {[%clk 0:02:57]}  Bg7 {[%clk 0:02:59]} 6. Re1 {[%clk 0:02:54]}  Nf6 {[%clk 0:02:59]} 7. e5 {[%clk 0:02:52]}  Nd5 {[%clk 0:02:59]} 8. h3 {[%clk 0:02:51]}  O-O {[%clk 0:02:58]} 9. Nc3 {[%clk 0:02:49]}  Bf5 {[%clk 0:02:55]} 10. d3 {[%clk 0:02:48]}  c4 {[%clk 0:02:52]} 11. dxc4 {[%clk 0:02:25]}  Nxc3 {[%clk 0:02:51]} 12. bxc3 {[%clk 0:02:25]}  Qa5 {[%clk 0:02:37]} 13. Bd2 {[%clk 0:02:08]}  c5 {[%clk 0:02:26]} 14. g4 {[%clk 0:01:59]}  Be6 {[%clk 0:02:26]} 15. Qe2 {[%clk 0:01:59]}  Qa4 {[%clk 0:02:25]} 16. Ng5 {[%clk 0:01:56]}  Bxc4 {[%clk 0:02:25]} 17. Qe4 {[%clk 0:01:51]}  h6 {[%clk 0:02:23]} 18. Nf3 {[%clk 0:01:46]}  Rfd8 {[%clk 0:02:21]} 19. Bf4 {[%clk 0:01:39]}  Qa6 {[%clk 0:02:14]} 20. g5 {[%clk 0:01:25]}  Bd5 {[%clk 0:02:08]} 21. Qe3 {[%clk 0:01:25]}  h5 {[%clk 0:02:07]} 22. Nd2 {[%clk 0:01:11]}  Qe6 {[%clk 0:02:04]} 23. Kh2 {[%clk 0:01:07]}  Qf5 {[%clk 0:02:00]} 24. Rac1 {[%clk 0:00:57]}  Bc6 {[%clk 0:01:56]} 25. Nf3 {[%clk 0:00:53]}  b6 {[%clk 0:01:46]} 26. Nh4 {[%clk 0:00:52]}  Qe6 {[%clk 0:01:46]} 27. a3 {[%clk 0:00:50]}  Qc4 {[%clk 0:01:46]} 28. Rcd1 {[%clk 0:00:47]}  Rd5 {[%clk 0:01:44]} 29. e6 {[%clk 0:00:45]}  Rxd1 {[%clk 0:01:31]} 30. exf7+ {[%clk 0:00:45]}  Qxf7 {[%clk 0:01:31]} 31. Rxd1 {[%clk 0:00:45]}  Rf8 {[%clk 0:01:30]} 32. Bg3 {[%clk 0:00:44]}  Kh7 {[%clk 0:01:24]} 33. Re1 {[%clk 0:00:43]}  e5 {[%clk 0:01:23]} 34. Bxe5 {[%clk 0:00:38]}  Bxe5+ {[%clk 0:01:21]} 35. Kg1 {[%clk 0:00:31]}  Bg7 {[%clk 0:01:17]} 36. Rf1 {[%clk 0:00:26]}  Qd5 {[%clk 0:01:14]} 37. f3 {[%clk 0:00:26]}  Qe5 {[%clk 0:01:12]} 38. Qxe5 {[%clk 0:00:24]}  Bxe5 {[%clk 0:01:12]} 39. Re1 {[%clk 0:00:25]}  Re8 {[%clk 0:01:08]} 40. Kf1 {[%clk 0:00:21]}  Bxc3 {[%clk 0:01:06]} 41. Rd1 {[%clk 0:00:19]}  Bb5+ {[%clk 0:00:59]} 42. Kg2 {[%clk 0:00:17]}  Re2+ {[%clk 0:00:59]} 43. Kg3 {[%clk 0:00:16]}  Be1+ {[%clk 0:00:58]} 44. Kf4 {[%clk 0:00:15]}  Bxh4 {[%clk 0:00:57]} 45. c4 {[%clk 0:00:14]}  Bxc4 {[%clk 0:00:50]} 46. a4 {[%clk 0:00:12]}  Re7 {[%clk 0:00:49]} 47. a5 {[%clk 0:00:12]}  Rf7+ {[%clk 0:00:49]} 48. Ke5 {[%clk 0:00:13]}  Bxg5 {[%clk 0:00:48]} 49. axb6 {[%clk 0:00:12]}  axb6 {[%clk 0:00:48]} 50. h4 {[%clk 0:00:09]}  Re7+ {[%clk 0:00:44]} 51. Kd6 {[%clk 0:00:08]}  Bxh4 {[%clk 0:00:43]} 52. Rh1 {[%clk 0:00:09]}  Bg3+ {[%clk 0:00:38]} 53. Kxe7 {[%clk 0:00:08]}  Kh6 {[%clk 0:00:38]} 0-1


[Site "https://www.chess.com"]